Workbook

Sheet Sheet1
A1: Program | B1: Total Cost per year (MoH perspective) | C1: Total Cost per year (Societal perspective) | D1: No. of deaths averted per year | E1: Cost/death averted (MoH) | F1: Cost/death averted (Societal)
A2: O: Status Quo | B2: 0 | C2: 0 | D2: 0 | E2: - | F2: -
A3: A: Universal | B3: 600000 | C3: 950000 | D3: 15000 | E3: =B3/D3 -> 40 | F3: =C3/D3 -> 63.33333333
A4: B: Broad targeting | B4: 400000 | C4: 1100000 | D4: 7000 | E4: =B4/D4 -> 57.14285714 | F4: =C4/D4 -> 157.1428571
A5: C: Narrow targeting | B5: 450000 | C5: 850000 | D5: 3500 | E5: =B5/D5 -> 128.5714286 | F5: =C5/D5 -> 242.8571429
B7: MoH
A8: Program | B8: C | C8: E | D8: IC | E8: IE | F8: ICER
A9: O: Status Quo | B9: 0 | C9: 0 | D9: - | E9: - | F9: -
A10: B: Broad targeting | B10: =B4 -> 400000 | C10: =D4 -> 7000 | D10: =B10 -> 400000 | E10: =C10 -> 7000 | F10: =D10/E10 -> 57.14285714
A11: C: Narrow targeting | B11: =B5 -> 450000 | C11: =D5 -> 3500
A12: A: Universal | B12: =B3 -> 600000 | C12: =D3 -> 15000 | D12: =B12-B10 -> 200000 | E12: =C12-C10 -> 8000 | F12: =D12/E12 -> 25
B14: Societal
A15: Program | B15: C | C15: E | D15: IC | E15: IE | F15: ICER
A16: O: Status Quo | B16: 0 | C16: 0 | D16: - | E16: - | F16: -
A17: C: Narrow targeting | B17: =C5 -> 850000 | C17: =D5 -> 3500 | D17: =B17 -> 850000 | E17: =C17 -> 3500 | F17: =D17/E17 -> 242.8571429
A18: A: Universal | B18: =C3 -> 950000 | C18: =D3 -> 15000 | D18: =B18-B17 -> 100000 | E18: =C18-C17 -> 11500 | F18: =D18/E18 -> 8.695652174
A19: B: Broad targeting | B19: =C4 -> 1100000 | C19: =D4 -> 7000

Sheet Sheet2

Sheet Sheet3
